[Event "SixDays Budapest March GM-B 2023"]
[Site "Budapest"]
[Date "2023.03.25"]
[Round "2.4"]
[White "Tran, Thanh Tu"]
[Black "Ilincic, Zlatko"]
[Result "0-1"]
[ECO "A46"]
[WhiteElo "2402"]
[BlackElo "2302"]
[Annotator "TA"]
[PlyCount "90"]
[EventDate "2023.03.24"]
[EventType "tourn"]
[EventCountry "HUN"]
[SourceTitle "playchess.com"]
[Source "ChessBase"]
[SourceQuality "1"]
[TimeControl "5400+30"]

{[%evp 15,89,29,45,36,62,22,35,23,145,49,101,75,118,115,113,63,125,141,199,184,225,225,463,292,411,410,520,387,356,77,87,69,94,66,133,67,83,77,167,164,158,164,168,160,230,210,229,213,214,111,115,-337,-371,-350,-305,-325,-306,-329,-306,-1080,-1050,-995,-908,-1187,-2094,-5691,-5636,-5085,-4134,-29990,-29991,-29995,-29996,-29997,-29998,-29999]} 1. d4 {[%emt 0:00:39]} Nf6 {[%emt 0:00:51]} 2. Nf3 {[%emt 0:00:25]} e6 {[%emt 0:00:15]} 3. Bf4 {[%emt 0:00:24]} b6 {[%emt 0:00:30]} 4. e3 {[%emt 0:01:53]} Bb7 {[%emt 0:00:14]} 5. Nbd2 {[%emt 0:00:58]} Be7 {[%emt 0:00:36]} 6. Bd3 {[%emt 0:00:45]} d5 {[%emt 0:00:35]} 7. Ne5 {[%emt 0:03:12]} O-O {[%emt 0:00:29]} 8. Qf3 {[%emt 0:01:26]} Nbd7 {[%emt 0:00:52]} 9. Qh3 {[%emt 0:01:02] D02: 1 d4 d5 2 Nf3 sidelines, including 2...Nf6 3 g3 and 2...Nf6 3 Bf4.} g6 {[%emt 0:00:48]} 10. Ndf3 {[%emt 0:09:16]} (10. Bh6 {keeps more tension.} Re8 11. f4 c5 12. O-O) 10... Nxe5 {[%emt 0:03:59] [#]} 11. dxe5 $146 {[%emt 0:05:49] White is slightly better.} (11. Nxe5 $5 Nd7 12. Nf3 $11) ({Predecessor:} 11. Nxe5 c5 12. c3 Nd7 13. Nf3 Bf6 14. Bb5 a6 15. Bxd7 Qxd7 16. Bh6 Rfe8 17. O-O {½-½ Rasted,T-Einarsson,B (2195) Politiken Cup 19th 1997 (5)}) 11... Nd7 {[%emt 0:02:17]} (11... Ne4 $11 {keeps the balance.}) 12. O-O-O {[%emt 0:01:28]} (12. Qh6 $1 $16) 12... Nc5 {[%emt 0:02:43]} (12... Re8 $14) 13. Bh6 {[%emt 0:05:42]} Re8 {[%emt 0:00:45]} 14. Qg3 {[%emt 0:01:59]} Nxd3+ {[%emt 0:05:38]} 15. Rxd3 {[%emt 0:00:23]} c5 {[%emt 0:00:50]} (15... Ba6 $14) 16. h4 $1 $16 {[%emt 0:03:46]} d4 {[%emt 0:00:38]} (16... Ba6 $16 {was necessary.}) 17. Ng5 $1 $18 {[%emt 0:07:32]} (17. exd4 Be4 $11) 17... Qd5 {[%emt 0:02:03]} 18. f3 {[%emt 0:00:20]} Qxa2 $2 {[%emt 0:12:01]} (18... f6) 19. Qf4 {[%emt 0:10:16]} Rf8 {[%emt 0:00:28]} (19... Bxg5 $2 20. Qxg5 Qa1+ 21. Kd2 Qxh1 22. Qf6 Qxg2+ 23. Kc1 Qg1+ 24. Rd1 $18) (19... Qa1+ {was worth a try.} 20. Kd2 Qa5+ 21. Ke2 Rf8) 20. Ra3 $1 {[%emt 0:02:54]} (20. Bxf8 Qa1+ 21. Kd2 Qa5+ 22. Kc1 Qa1+ 23. Kd2 Qa5+ 24. Kd1 Rxf8 $16) 20... Qd5 {[%emt 0:00:14][%cal Of7f6]} (20... Bxg5 $2 21. hxg5 f5 22. Rxa2 $18) 21. Bxf8 {[%emt 0:02:28]} Rxf8 {[%emt 0:00:07]} 22. e4 $2 {[%emt 0:00:49]} (22. Rxa7 $18 {Hoping for Ne4.} dxe3 23. Rd1) 22... Qd8 {[%emt 0:03:10]} 23. Rxa7 {[%emt 0:04:04]} Qb8 {[%emt 0:00:13]} 24. Ra2 {[%emt 0:00:56]} h6 {[%emt 0:00:27] [#]} ({Better is} 24... Kg7 $14) 25. Nh3 {[%emt 0:00:16]} (25. Nxe6 $1 $16 fxe6 26. Qxh6) 25... Kg7 $14 {[%emt 0:02:46]} 26. Nf2 {[%emt 0:00:54]} h5 {[%emt 0:02:09]} (26... b5 $16) 27. g4 $18 {[%emt 0:06:27]} Rh8 {[%emt 0:01:40]} 28. gxh5 {[%emt 0:00:13]} Rxh5 {[%emt 0:00:17] [#]} 29. Ng4 $1 {[%emt 0:00:04] Threatens to win with Nf6.} Kf8 {[%emt 0:07:06]} (29... Qd8 $16 {keeps fighting.} 30. Nf6 (30. Ra7 Rxh4 {[%mdl 64] Remove Defender} 31. Rxh4 Bg5 $11) 30... Bxf6 31. Qxf6+ (31. exf6+ Qxf6 32. Qxf6+ Kxf6 $16) 31... Qxf6 32. exf6+ Kxf6) 30. Nf6 {[%emt 0:04:50]} ({Inferior is} 30. Nh6 Bg5 31. hxg5 Rxh1+ 32. Kd2 f5 33. exf5 (33. gxf6 $2 Qe8 $19) 33... exf5 $11) 30... Bxf6 {[%emt 0:00:46]} 31. Qxf6 {[%emt 0:00:03]} Qxe5 {[%emt 0:01:44]} 32. Qd8+ {[%emt 0:00:55]} (32. Qxe5 $18 {White wants to mate with Qc7.} Rxe5 33. Ra7) 32... Kg7 $16 {[%emt 0:00:12]} 33. Ra7 $2 {[%emt 0:00:52][%mdl 8192] This move loses the game for White.} ({Stronger than} 33. Qxb6 Qf4+ 34. Kb1 Qxf3 $17) (33. Kb1 $16 {keeps the pressure on.} Qf6 34. Qxf6+ (34. Qxb6 $2 Qxf3 35. Rc1 Bxe4 $17) 34... Kxf6 35. Kc1) 33... Qf4+ $19 {[%emt 0:00:23]} 34. Kb1 {[%emt 0:00:17]} Qxf3 {[%emt 0:00:11]} 35. Rc1 {[%emt 0:01:55]} Bxe4 {[%emt 0:03:00] White must now prevent ...Qe2.} 36. Qxb6 {[%emt 0:00:02]} Qe3 {[%emt 0:02:40] Strongly threatening ...d3.} ({Worse is} 36... Rxh4 37. Qxe6 Rh5 38. Re7 $15) 37. Rxf7+ $2 {[%emt 0:09:39] White is weak on the light squares} (37. Qa5 c4 38. Qb6) 37... Kxf7 {[%emt 0:00:20]} 38. Qc7+ {[%emt 0:00:06]} Kf6 {[%emt 0:00:21] aiming for ...d3.} 39. Rf1+ {[%emt 0:00:12]} Rf5 {[%emt 0:03:38]} 40. Qd8+ {[%emt 0:00:23]} Kg7 {[%emt 0:00:08]} 41. Qe7+ {[%emt 0:02:46]} Kh6 {[%emt 0:00:09]} 42. Rc1 {[%emt 0:00:13]} d3 {[%emt 0:00:14][%cal Bd4d3,Bd3c2][%mdl 32] Black mates.} 43. Qe8 {[%emt 0:00:18]} dxc2+ {[%emt 0:00:31]} 44. Ka2 {[%emt 0:00:03]} Bd5+ {[%emt 0:00:35]} 45. Ka1 {[%emt 0:00:04]} Qxc1# {[%emt 0:00:06] Weighted Error Value: White=0.82/Black=0.41} 0-1

[Event "SixDays Budapest March GM-B 2023"]
[Site "Budapest"]
[Date "2023.03.25"]
[Round "2.5"]
[White "Priasmoro, Novendra"]
[Black "Swayams, Mishra"]
[Result "1-0"]
[ECO "C91"]
[WhiteElo "2521"]
[BlackElo "2489"]
[Annotator "TA"]
[PlyCount "129"]
[EventDate "2023.03.24"]
[EventType "tourn"]
[EventCountry "HUN"]
[SourceTitle "playchess.com"]
[Source "ChessBase"]
[SourceQuality "1"]
[TimeControl "5400+30"]

{[%evp 21,129,-2,7,0,38,31,63,-28,-19,-22,-8,-18,-20,-14,-16,-18,-14,-27,22,21,25,18,18,22,26,25,33,18,21,24,24,29,25,14,14,2,35,30,50,41,47,28,48,9,48,50,45,42,37,35,46,38,66,66,208,198,406,391,450,440,439,0,247,262,232,248,252,230,255,233,234,236,424,424,419,415,401,397,464,459,450,458,446,441,441,356,349,360,365,308,286,266,335,308,402,313,348,335,625,625,575,504,950,931,888,737,29963,12784,12674,29943]} 1. e4 {[%emt 0:08:36]} e5 {[%emt 0:08:23]} 2. Nf3 {[%emt 0:00:10]} Nc6 {[%emt 0:00:18]} 3. Bb5 {[%emt 0:00:11]} a6 {[%emt 0:00:05]} 4. Ba4 {[%emt 0:00:06]} Nf6 {[%emt 0:00:06]} 5. O-O {[%emt 0:00:07]} Be7 {[%emt 0:00:09]} 6. Re1 {[%emt 0:00:15]} b5 {[%emt 0:00:05]} 7. Bb3 {[%emt 0:00:05]} O-O {[%emt 0:00:05]} 8. d4 {[%emt 0:02:19][%cal Bd2d4,Bd4d5][%mdl 32]} d6 {[%emt 0:00:05]} 9. c3 {[%emt 0:00:15]} Bg4 {[%emt 0:00:17]} 10. d5 {[%emt 0:00:16]} Na5 {[%emt 0:00:16]} 11. Bc2 {[%emt 0:00:11]} c6 {[%emt 0:00:19]} 12. dxc6 {[%emt 0:00:23] C91: Closed Ruy Lopez: 7...d6 8 c3 0-0 9 d4.} Qc8 {[%emt 0:01:11] 12...Nxc6 is the modern continuation.} 13. h3 {[%emt 0:06:31]} Be6 {[%emt 0:02:44]} 14. Bg5 {[%emt 0:08:01]} ({White should play} 14. Ng5 $1 $14) 14... Qxc6 {[%emt 0:01:55]} 15. Nbd2 {[%emt 0:00:13] [#]} Rfc8 $146 {[%emt 0:03:27]} ({Predecessor:} 15... Nc4 16. Nxc4 bxc4 17. Qe2 Rab8 18. b4 cxb3 19. Bxb3 a5 20. Bxe6 fxe6 21. Rab1 Rfc8 22. Rxb8 Rxb8 {½-½ Kakabayaev,M (2330)-Chudinovskikh,A (2219) Moscow RGSU op 2016 (6)}) 16. Rc1 {[%emt 0:10:26]} h6 {[%emt 0:03:01]} 17. Bxf6 {[%emt 0:04:32]} Bxf6 {[%emt 0:00:03]} 18. b4 {[%emt 0:00:15]} Nc4 {[%emt 0:00:30]} 19. Nxc4 {[%emt 0:00:16]} bxc4 {[%emt 0:01:38]} (19... Bxc4 $142 20. Bb3 a5) 20. a4 $11 {[%emt 0:02:41]} Rd8 {[%emt 0:08:00]} 21. Qe2 {[%emt 0:01:06]} g6 {[%emt 0:00:09]} 22. Rcd1 {[%emt 0:02:39]} Bg7 {[%emt 0:02:28]} 23. a5 {[%emt 0:04:55]} Ra7 {[%emt 0:04:40]} 24. Qe3 {[%emt 0:04:54]} Re7 {[%emt 0:01:27]} 25. Rd2 {[%emt 0:01:32]} Kh7 {[%emt 0:08:52]} 26. Red1 {[%emt 0:00:24]} Rb7 {[%emt 0:00:29] Prevents Qb6} 27. Ra1 {[%emt 0:08:31]} Rbb8 {[%emt 0:03:44]} 28. h4 {[%emt 0:04:21]} Bf6 {[%emt 0:04:05]} 29. g3 {[%emt 0:06:04]} Kg7 {[%emt 0:05:26]} 30. Rad1 {[%emt 0:01:12]} Qc7 {[%emt 0:03:17]} 31. Bb1 {[%emt 0:02:21]} Qe7 {[%emt 0:00:32]} 32. Kg2 {[%emt 0:01:25]} Qc7 {[%emt 0:12:40]} 33. Nh2 {[%emt 0:01:42]} Rb5 {[%emt 0:04:15]} 34. Qf3 {[%emt 0:02:21]} h5 {[%emt 0:03:07]} 35. Bc2 {[%emt 0:00:18]} Rbb8 {[%emt 0:01:32]} 36. Qe2 {[%emt 0:03:01]} Qc6 {[%emt 0:00:21]} 37. Nf1 {[%emt 0:00:46]} d5 {[%emt 0:06:40]} (37... Kh7 $14) 38. exd5 $18 {[%emt 0:00:37]} Rxd5 {[%emt 0:00:38]} (38... Bxd5+ $2 39. Rxd5 Rxd5 40. Be4 $18) (38... Qb7 {is a better defense.} 39. Ne3 (39. Qxc4 Rdc8 $18) 39... Bd7) 39. Qf3 {[%emt 0:07:04]} Rc5 {[%emt 0:05:43][%cal Oe6h3] ...Bh3+! would be deadly.} 40. Be4 {[%emt 0:00:24]} (40. bxc5 $2 Bh3+ 41. Kxh3 Qxf3 $19) 40... Qa4 {[%emt 0:00:02]} 41. Bc2 {[%emt 0:04:53]} (41. bxc5 Bg4 $18) (41. Rd6 $142 Rc7 42. Rxa6) 41... Qc6 {[%emt 0:00:02]} 42. Qxc6 {[%emt 0:00:21]} (42. bxc5 $2 Bh3+ 43. Kxh3 Qxf3 $19) (42. Be4 Qa4 43. Rd6 Rc7 $18) 42... Rxc6 {[%emt 0:00:01] [#]} 43. Be4 $1 {[%emt 0:00:15]} Rc7 {[%emt 0:00:25] [#]} 44. Rd6 $1 {[%emt 0:00:08]} Ra7 {[%emt 0:02:21]} 45. Ne3 {[%emt 0:00:26]} Rc8 {[%emt 0:00:19]} 46. Rb6 {[%emt 0:02:53] Rdd6 is the strong threat.} Rcc7 $2 {[%emt 0:02:23]} (46... Be7 47. Bb7 Rd8) 47. Rdd6 {[%emt 0:00:13]} Be7 {[%emt 0:00:57]} 48. Rxe6 {[%emt 0:00:13]} fxe6 {[%emt 0:00:04]} 49. Rxe6 {[%emt 0:00:05]} Bf6 {[%emt 0:00:42]} 50. Nd5 {[%emt 0:00:19][%csl LRc7,LRf6]} Rf7 {[%emt 0:00:02]} 51. Rc6 {[%emt 0:00:12]} Rf8 {[%emt 0:01:23]} 52. Rxc4 {[%emt 0:00:21]} g5 {[%emt 0:00:12]} 53. hxg5 {[%emt 0:01:48]} Bxg5 {[%emt 0:00:01]} 54. Rc6 {[%emt 0:01:33] Hoping for Rg6+.} Bd2 {[%emt 0:00:02]} 55. Rg6+ {[%emt 0:00:52]} Kh8 {[%emt 0:02:17]} 56. Re6 {[%emt 0:00:39][%cal Bg6e6,Be6e5,Be5h5,Bh5h7][%mdl 32]} Be1 {[%emt 0:01:46]} 57. f3 {[%emt 0:00:23]} ({Less strong is} 57. Rxe5 Rxf2+ 58. Kh3 Kg7 59. Rg5+ (59. Rxh5 Raf7 $16) 59... Kf8 $16) 57... Rg7 {[%emt 0:00:11]} 58. Rxe5 {[%emt 0:01:02]} ({Don't play} 58. Rxa6 Rxg3+ 59. Kf1 Bd2 $18) 58... Rxg3+ {[%emt 0:02:07]} 59. Kf1 {[%emt 0:00:01]} Bxc3 $2 {[%emt 0:00:52]} (59... Bd2 60. Rxh5+ Kg8) 60. Rxh5+ {[%emt 0:00:06]} Kg8 {[%emt 0:00:02]} 61. Kf2 {[%emt 0:00:22]} Be1+ {[%emt 0:01:26]} (61... Bxb4 $142 62. Kxg3 Bd2) 62. Kxe1 {[%emt 0:00:06]} Rg2 {[%emt 0:00:01]} 63. Rh7 {[%emt 0:00:34][%cal Rd5e7]} Rd8 {[%emt 0:01:08]} 64. Ne7+ {[%emt 0:00:11]} Kf8 {[%emt 0:00:02]} 65. Ng6+ {[%emt 0:00:07] Weighted Error Value: White=0.23 (precise) /Black=0.48} 1-0

[Event "SixDays Budapest March GM-B 2023"]
[Site "Budapest"]
[Date "2023.03.25"]
[Round "3.1"]
[White "Swayams, Mishra"]
[Black "Vantika Agrawal"]
[Result "1/2-1/2"]
[ECO "E73"]
[WhiteElo "2489"]
[BlackElo "2367"]
[Annotator "TA"]
[PlyCount "44"]
[EventDate "2023.03.24"]
[EventType "tourn"]
[EventCountry "HUN"]
[SourceTitle "playchess.com"]
[Source "ChessBase"]
[SourceQuality "1"]
[TimeControl "5400+30"]

{[%evp 19,31,6,19,3,0,1,0,-8,-10,-21,-20,-22,-18,-18]} 1. d4 {[%emt 0:06:57]} Nf6 {[%emt 0:00:48]} 2. c4 {[%emt 0:02:08]} g6 {[%emt 0:00:06]} 3. Nc3 {[%emt 0:00:12]} Bg7 {[%emt 0:00:06]} 4. e4 {[%emt 0:00:06]} d6 {[%emt 0:00:09]} 5. Be2 {[%emt 0:01:15]} O-O {[%emt 0:00:08]} 6. Bg5 {[%emt 0:00:11]} c5 {[%emt 0:00:50]} 7. d5 {[%emt 0:00:07]} e6 {[%emt 0:00:29]} 8. Qd2 {[%emt 0:00:49]} exd5 {[%emt 0:00:21]} 9. exd5 {[%emt 0:04:29]} Qb6 {[%emt 0:02:19]} 10. Nf3 {[%emt 0:01:25]} Bf5 {[%emt 0:01:07] The position is equal.} 11. O-O {[%emt 0:14:26] E75: King's Indian: Averbakh Variation: 6...c5 7 d5 e6.} Ne4 {[%emt 0:03:18]} 12. Nxe4 {[%emt 0:00:20]} Bxe4 {[%emt 0:00:06]} 13. Rae1 {[%emt 0:01:25]} Qxb2 {[%emt 0:32:10]} 14. Be7 {[%emt 0:06:57]} Re8 {[%emt 0:01:48]} 15. Bxd6 {[%emt 0:03:22] [#] Bd3 is the strong threat.} Nd7 {[%emt 0:03:12]} 16. Qxb2 {[%emt 0:11:02] [#] An uneventful encounter.   Weighted Error Value: White=0.08 (flawless) /Black=0.00 (flawless)} {Predecessor:} Bxb2 $146 17. Bf4 Bf5 18. Be3 b6 19. Rd1 Nf6 20. h3 Ne4 21. g4 Bd7 22. Bd3 Ba4 {1-0 Shabalov,A (2528)-Ravuri,V (2151) Las Vegas National op 2019 (1)} 1/2-1/2

[Event "SixDays Budapest March GM-B 2023"]
[Site "Budapest"]
[Date "2023.03.25"]
[Round "3.2"]
[White "Ilincic, Zlatko"]
[Black "Priasmoro, Novendra"]
[Result "0-1"]
[ECO "E62"]
[WhiteElo "2302"]
[BlackElo "2521"]
[Annotator "TA"]
[PlyCount "114"]
[EventDate "2023.03.24"]
[EventType "tourn"]
[EventCountry "HUN"]
[SourceTitle "playchess.com"]
[Source "ChessBase"]
[SourceQuality "1"]
[TimeControl "5400+30"]

{[%evp 15,114,28,47,4,7,0,7,0,2,14,8,0,14,10,20,13,25,25,24,30,33,-53,-42,-43,-54,-87,-81,-86,-86,-100,-95,-95,-95,-92,-97,-100,-91,-95,-87,-91,-104,-87,0,0,0,0,108,0,0,0,0,0,0,0,0,0,41,25,56,0,0,0,0,0,0,-126,-122,-92,-53,-54,-61,-58,-76,-110,-97,-128,-97,-109,-121,-121,-121,-121,-121,-112,-91,-113,-105,-85,-70,-475,-477,-459,-439,-445,-425,-409,-425,-12834,-12814,-12833,-6843]} 1. d4 {[%emt 0:00:34]} Nf6 {[%emt 0:04:26]} 2. c4 {[%emt 0:00:10]} g6 {[%emt 0:00:06]} 3. g3 {[%emt 0:00:06]} Bg7 {[%emt 0:00:04]} 4. Bg2 {[%emt 0:00:05]} O-O {[%emt 0:00:09]} 5. Nc3 {[%emt 0:00:04]} d6 {[%emt 0:00:11]} 6. Nf3 {[%emt 0:00:11]} Nc6 {[%emt 0:00:04]} 7. O-O {[%emt 0:00:27]} Bf5 {[%emt 0:00:12] 7...e5 gains popularity.} 8. b3 {[%emt 0:00:20]} e5 {[%emt 0:00:07] is the legacy move (8...Ne4).} 9. dxe5 {[%emt 0:01:49] E62: King's Indian: Fianchetto: 6...c6 and Panno Variation (6...Nc6) without ...a6.} (9. d5 $5 {[%cal Rd5c6]} Ne7 10. Bb2 $14) 9... dxe5 {[%emt 0:00:08]} 10. Ba3 {[%emt 0:08:02]} Re8 {[%emt 0:00:09]} 11. Nh4 {[%emt 0:00:22] The position is equal.} Bg4 {[%emt 0:02:06]} 12. Bxc6 {[%emt 0:03:57]} bxc6 {[%emt 0:00:15]} 13. Qxd8 {[%emt 0:01:22]} Raxd8 {[%emt 0:00:14] [#]} 14. f3 $146 {[%emt 0:01:58]} ({Predecessor:} 14. Rfd1 e4 15. Bb2 Nd7 16. Kf1 Nc5 17. Rxd8 Rxd8 18. Rd1 Rd6 19. Rxd6 cxd6 20. Nd1 {0-1 Ustianovich,N (2376)-Yuffa,D (2582) Riga Tal Memorial rapid 2019 (10)}) 14... Bh3 {[%emt 0:01:45]} 15. Rfd1 {[%emt 0:02:05]} e4 {[%emt 0:00:33]} 16. Rxd8 {[%emt 0:01:35]} Rxd8 {[%emt 0:00:06]} 17. Rd1 $1 {[%emt 0:00:17]} Re8 {[%emt 0:04:19]} 18. Bb4 {[%emt 0:03:08]} (18. Nxe4 $14 Nxe4 19. fxe4) 18... exf3 $15 {[%emt 0:01:11]} 19. exf3 {[%emt 0:00:12] [#]} c5 $1 $36 {[%emt 0:06:11][%mdl 2048] Black has the initiative.} 20. Bxc5 {[%emt 0:04:02][%cal Oh4g2]} (20. Ba5 g5) 20... Nd7 {[%emt 0:00:28][%mdl 64] Discovered Attack} 21. Bd4 {[%emt 0:01:00] [#]} Re1+ $1 {[%emt 0:00:50][%mdl 64] Deflection} 22. Rxe1 {[%emt 0:01:05]} Bxd4+ {[%emt 0:00:04]} 23. Kh1 {[%emt 0:00:08] Black must now prevent Nd5.} Bxc3 {[%emt 0:00:04] A strong pair of Bishops.} 24. Re8+ {[%emt 0:00:53]} Kg7 {[%emt 0:00:05]} 25. Ng2 {[%emt 0:00:10]} Ne5 {[%emt 0:20:15]} 26. Nf4 {[%emt 0:02:48]} Bd7 {[%emt 0:05:33]} 27. Rd8 {[%emt 0:00:15]} Bc6 {[%emt 0:01:21]} 28. Nd5 {[%emt 0:00:17]} Bxd5 {[%emt 0:01:26]} (28... Bd4 $17) 29. Rxd5 $11 {[%emt 0:00:25]} c6 {[%emt 0:00:12]} (29... Nxf3 $2 30. Rd3 $18) 30. Rd1 {[%emt 0:00:28]} c5 {[%emt 0:07:34]} (30... Nxf3 $2 31. Rd3 $18) (30... Bb4 $11) 31. Rd6 {[%emt 0:07:00]} (31. Rd5 $1 $16) 31... a5 {[%emt 0:03:53]} (31... Nxf3 $2 32. Rd3 $18) 32. Kg2 {[%emt 0:01:43]} (32. f4 $5 Ng4 $8 33. Kg2 $11) 32... f5 {[%emt 0:08:33]} 33. h3 {[%emt 0:05:40]} Nf7 {[%emt 0:03:53]} 34. Rb6 {[%emt 0:01:28]} Bb4 {[%emt 0:00:28]} 35. f4 {[%emt 0:04:56]} Kf8 {[%emt 0:00:40]} 36. g4 {[%emt 0:00:35][%mdl 1024] White has compensation.} Ke7 {[%emt 0:01:39]} 37. g5 {[%emt 0:02:29]} (37. Rc6 $14) 37... Nd8 {[%emt 0:02:02]} 38. Kf3 {[%emt 0:02:28]} Bd2 {[%emt 0:00:39]} 39. Ra6 {[%emt 0:03:26]} Ne6 {[%emt 0:01:35]} 40. Ke2 {[%emt 0:00:35]} (40. h4 $11) 40... Bxf4 $17 {[%emt 0:02:56]} 41. Rxa5 {[%emt 0:00:05]} Bc7 {[%emt 0:00:10] Black is more active.} ({Don't play} 41... Nxg5 $6 42. Rxc5 Nxh3 43. a4 $11) 42. Ra7 {[%emt 0:01:25]} Kd7 {[%emt 0:00:22] aiming for ...Nf4+.} 43. h4 {[%emt 0:00:19]} Nd4+ {[%emt 0:01:04]} 44. Kf2 {[%emt 0:00:09]} Nc6 $1 {[%emt 0:00:53]} 45. Ra8 {[%emt 0:02:07]} Bb8 {[%emt 0:01:13]} 46. a3 {[%emt 0:00:50][%cal Ob3b4]} Kc8 {[%emt 0:03:29] Strongly threatening ...Na7.} 47. Ra4 {[%emt 0:00:39]} Kb7 {[%emt 0:01:35]} 48. b4 {[%emt 0:00:31]} Bd6 {[%emt 0:02:26][%cal Rc5b4]} 49. b5 {[%emt 0:00:31] [#]} Nb8 {[%emt 0:01:00]} 50. Kg2 {[%emt 0:01:06]} Bc7 {[%emt 0:00:09]} 51. Kf2 {[%emt 0:02:14]} Nd7 {[%emt 0:01:00] And now ...Nb6 would win.} 52. Kg2 $2 {[%emt 0:00:53][%mdl 8192] This move loses the game for White.} (52. Ke2 $15) 52... Ne5 $19 {[%emt 0:00:17]} (52... Nb6 53. Ra6 $19) 53. Kf2 {[%emt 0:00:15] [#]} Nd3+ $1 {[%emt 0:00:15]} 54. Kf3 {[%emt 0:01:46]} Nb2 {[%emt 0:00:06][%mdl 64] Deflection} 55. Ra6 {[%emt 0:00:04]} Bb6 {[%emt 0:00:05]} (55... Nxc4 $2 {too greedy.} 56. Ke2 $19) 56. a4 {[%emt 0:00:07]} (56. Ke2 $142 Nxc4 57. Ra4) 56... Nxc4 {[%emt 0:00:05]} 57. Ke2 {[%emt 0:00:16]} Na5 {[%emt 0:00:04] Weighted Error Value: White=0.41/Black=0.09 (flawless)} 0-1